fUSD/lending_fUSD_20251130
["ID","MTS","AMOUNT","RATE_DAILY","PERIOD"]
[395130341,1764461448113,-8000.0,0.00022991,2]
[395130342,1764461448125,-250.0,0.00022991,2]
[395130343,1764461448135,-1000.0,0.00022991,2]
[395130344,1764461448147,-500.0,0.00022991,2]
[395130345,1764461448156,-250.0,0.00022991,2]
[395130346,1764461448165,-1000.0,0.00022991,2]
[395130347,1764461448175,-500.0,0.00022991,2]
[395130348,1764461448184,-250.0,0.00022991,2]
[395130349,1764461448193,-500.0,0.00022991,2]
[395130350,1764461448206,-250.0,0.00022991,2]
[395130351,1764461448217,-500.0,0.00022991,2]
[395130352,1764461448226,-250.0,0.00022991,2]
[395130353,1764461448235,-250.0,0.00022991,2]
[395130354,1764461448244,-250.0,0.00022991,2]
[395130355,1764461448254,-250.0,0.00022991,2]
[395130356,1764461448263,-250.0,0.00022991,2]
[395130357,1764461448272,-196.37513273,0.00022991,2]
[395130358,1764461448282,-250.0,0.00022991,2]
[395130359,1764461448291,-250.0,0.00022991,2]
[395130360,1764461448300,-250.0,0.00022991,2]
[395130361,1764461448310,-151.0,0.00022991,2]
[395130362,1764461448321,-250.0,0.00022991,2]
[395130363,1764461448330,-1000.0,0.00022991,2]
[395130364,1764461448340,-250.0,0.00022991,2]
[395130365,1764461448349,-1000.0,0.00022991,2]
[395130366,1764461448358,-250.0,0.00022991,2]
[395130367,1764461448367,-1000.0,0.00022991,2]
[395130368,1764461448376,-250.0,0.00022991,2]
[395130369,1764461448385,-500.0,0.00022991,2]
[395130370,1764461448394,-257.91778498,0.00022991,2]
[395130371,1764461448403,-1000.0,0.00022991,2]
[395130372,1764461448412,-250.0,0.00022991,2]
[395130373,1764461448421,-1000.0,0.00022991,2]
[395130374,1764461448431,-201.71198878,0.00022991,2]
[395130375,1764461448440,-1000.0,0.00022991,2]
[395130376,1764461448450,-1000.0,0.00022991,2]
[395130377,1764461448459,-1000.0,0.00022991,2]
[395130378,1764461448468,-151.0,0.00022991,2]
[395130379,1764461448477,-1000.0,0.00022991,2]
[395130380,1764461448486,-1000.0,0.00022991,2]
[395130381,1764461448495,-1000.0,0.00022991,2]
[395130382,1764461448505,-1000.0,0.00022991,2]
[395130383,1764461448515,-194.72792766,0.00022991,2]
[395130384,1764461448524,-151.0,0.00022991,2]
[395130385,1764461448534,-1000.0,0.00022991,2]
[395130386,1764461448543,-500.0,0.00022991,2]
[395130387,1764461448552,-670.58624095,0.00022991,2]
[395130388,1764461448561,-500.0,0.00022991,2]
[395130389,1764461448571,-500.0,0.00022991,2]
[395130390,1764461448580,-500.0,0.00022991,2]
[395130391,1764461448589,-500.0,0.00022991,2]
[395130392,1764461448598,-500.0,0.00022991,2]
[395130393,1764461448608,-500.0,0.00022991,2]
[395130394,1764461448617,-500.0,0.00022991,2]
[395130395,1764461448626,-250.0,0.00022991,2]
[395130396,1764461448635,-500.0,0.00022991,2]
[395130397,1764461448645,-250.0,0.00022991,2]
[395130398,1764461448654,-250.0,0.00022991,2]
[395130399,1764461448663,-500.0,0.00022991,2]
[395130400,1764461448672,-250.0,0.00022991,2]
[395130401,1764461448681,-250.0,0.00022991,2]
[395130402,1764461448691,-500.0,0.00022991,2]
[395130403,1764461448700,-250.0,0.00022991,2]
[395130404,1764461448710,-250.0,0.00022991,2]
[395130405,1764461448719,-151.0,0.00022991,2]
[395130406,1764461448729,-500.0,0.00022991,2]
[395130407,1764461448738,-250.0,0.00022991,2]
[395130408,1764461448747,-250.0,0.00022991,2]
[395130409,1764461448756,-151.0,0.00022991,2]
[395130410,1764461448765,-499.97,0.00022991,2]
[395130411,1764461448775,-500.0,0.00022991,2]
[395130412,1764461448784,-250.0,0.00022991,2]
[395130413,1764461448794,-250.0,0.00022991,2]
[395130414,1764461448803,-151.0,0.00022991,2]
[395130415,1764461448813,-500.0,0.00022991,2]
[395130416,1764461448822,-250.0,0.00022991,2]
[395130417,1764461448831,-250.0,0.00022991,2]
[395130418,1764461448841,-151.0,0.00022991,2]
[395130419,1764461448851,-250.0,0.00022991,2]
[395130420,1764461448860,-500.0,0.00022991,2]
[395130421,1764461448869,-250.0,0.00022991,2]
[395130422,1764461448879,-151.0,0.00022991,2]
[395130423,1764461448889,-250.0,0.00022991,2]
[395130424,1764461448899,-500.0,0.00022991,2]
[395130425,1764461448909,-250.0,0.00022991,2]
[395130426,1764461448918,-151.0,0.00022991,2]
[395130427,1764461448927,-250.0,0.00022991,2]
[395130428,1764461448937,-500.0,0.00022991,2]
[395130429,1764461448947,-175.94161149,0.00022991,2]
[395130430,1764461448956,-151.0,0.00022991,2]
[395130431,1764461448966,-250.0,0.00022991,2]
[395130432,1764461448976,-500.0,0.00022991,2]
[395130433,1764461448986,-151.0,0.00022991,2]
[395130434,1764461448996,-250.0,0.00022991,2]
[395130435,1764461449005,-500.0,0.00022991,2]
[395130436,1764461449015,-151.0,0.00022991,2]
[395130437,1764461449024,-500.0,0.00022991,2]
[395130438,1764461449033,-151.0,0.00022991,2]
[395130439,1764461449042,-250.0,0.00022991,2]
[395130440,1764461449052,-500.0,0.00022991,2]
[395130441,1764461449061,-277.50242414,0.00022991,2]
[395130442,1764461449071,-343.79381622,0.00022991,2]
[395130443,1764461449080,-250.0,0.00022991,2]
[395130444,1764461449089,-300.0,0.00022991,2]
[395130445,1764461449099,-500.0,0.00023033,2]
[395130446,1764461449109,-1900.0,0.00023062,2]
[395130447,1764461449119,-4500.0,0.00023113,2]
[395130448,1764461449129,-963.86269134,0.00023121,2]
[395130449,1764461449139,-610.0,0.00023169,2]
[395130450,1764461449148,-1321.0,0.00023169,2]
[395130451,1764461449157,-3441.0,0.00023169,2]
[395130452,1764461449167,-700.0,0.00023169,2]
[395130453,1764461449176,-1258.0,0.00023169,2]
[395130454,1764461449185,-1193.0,0.00023169,2]
[395130455,1764461449195,-909.0,0.00023169,2]
[395130456,1764461449205,-294.0,0.00023169,2]
[395130457,1764461449216,-2718.0,0.00023169,2]
[395130458,1764461449227,-6505.0,0.00023169,2]
[395130459,1764461449236,-150.0,0.00023184,2]
[395130460,1764461449245,-185.387,0.00023184,2]
[395130461,1764461449255,-150.0,0.00023184,2]
[395130462,1764461449264,-250.0,0.00023184,2]
[395130463,1764461449273,-150.0,0.00023184,2]
[395130464,1764461449283,-1603.0,0.00023184,2]
[395130465,1764461449292,-4500.0,0.000232,2]
[395130466,1764461449301,-4500.0,0.00023223,2]
[395130467,1764461449311,-500.0,0.00023301,2]
[395130468,1764461449320,-1300.0,0.00023334,2]
[395130469,1764461449330,-7447.50399424,0.00023414,2]
[395130470,1764461449340,-1300.0,0.00023439,2]
[395130471,1764461449350,-1300.0,0.00023483,2]
[395130472,1764461449360,-500.0,0.0002349,2]
[395130473,1764461449369,-505.31770609,0.00023514,2]
[395130474,1764461449481,-642.94,0.00023539,2]
[395130475,1764461449492,-1000.0,0.00023539,2]
[395130476,1764461449502,-553.64373807,0.00023539,2]
[395130477,1764461449511,-151.0,0.00023539,2]
[395130478,1764461449520,-151.0,0.00023539,2]
[395130479,1764461449529,-1900.0,0.0002354,2]
[395130480,1764461449538,-1300.0,0.00023541,2]
[395130481,1764461449548,-1900.0,0.00023613,2]
[395130482,1764461449557,-1900.0,0.00023618,2]
[395130483,1764461449566,-869.78119839,0.00023658,2]
[395130484,1764461449575,-1300.0,0.00023693,2]
[395130485,1764461449584,-2024.82887937,0.00023727,2]
[395130486,1764461449594,-1900.0,0.00023824,2]
[395130487,1764461449605,-3733.82845205,0.00023884,2]
[395130488,1764461449615,-666.0,0.00023982,2]
[395130489,1764461449624,-11725.0,0.00023983,2]
[395130490,1764461449633,-617.39348044,0.00024087,2]
[395130491,1764461449642,-1000.0,0.00024087,2]
[395130492,1764461449652,-574.12855637,0.00024087,2]
[395130493,1764461449661,-151.0,0.00024087,2]
[395130494,1764461449671,-195.02807186,0.0002436,2]
[395130495,1764461449681,-162.9203721,0.0002436,2]
[395130496,1764461449691,-267.46074303,0.0002436,2]
[395130497,1764461449700,-311.1,0.0002436,2]
[395130498,1764461449709,-1380.89077824,0.000244,2]
[395130499,1764461449718,-1000.0,0.000244,2]
[395130500,1764461449727,-1600.0,0.00024412,2]
[395130501,1764461449736,-323.84695153,0.00024621,2]
[395130502,1764461449745,-1000.0,0.00024635,2]
[395130503,1764461449755,-595.37131296,0.00024635,2]
[395130504,1764461449763,-1000.0,0.00024658,2]
[395130505,1764461449772,-160.04211896,0.00024673,2]
[395130506,1764461449781,-700.0,0.0002477,2]
[395130507,1764461449789,-515.00012221,0.00024799,2]
[395130508,1764461449798,-666.0,0.00024799,2]
[395130509,1764461449808,-500.0,0.00024799,2]
[395130510,1764461449818,-500.0,0.00024799,2]
[395130511,1764461449827,-2557.06699941,0.000248,2]
[395130512,1764461449836,-245840.69380781,0.000248,3]
[395130513,1764461451144,-5523.0,0.000146,3]
[395130514,1764461451154,-223.24,0.00015285,2]
[395130515,1764461451162,-223.24,0.0001807,2]
[395130516,1764461451171,-150.71,0.000188,2]
[395130517,1764461451180,-214.217665,0.00022991,2]
[395130518,1764461451189,-562.0,0.00023169,2]
[395130519,1764461451199,-60978.24042019,0.000248,3]
[395130520,1764461451210,-666.0,0.00024899,2]
[395130521,1764461451219,-940.31947038,0.000249,2]
[395130522,1764461451229,-44137.69192,0.000249,3]
[395130523,1764461451238,-9035.0,0.00025066,2]
[395130524,1764461451247,-606.94,0.000251,7]
[395130525,1764461451256,-400.64570606,0.00025173,2]
[395130526,1764461451264,-400.64570606,0.00025177,2]
[395130527,1764461451273,-400.64570606,0.00025181,2]
[395130528,1764461451282,-1000.0,0.00025183,2]
[395130529,1764461451291,-170.2801295,0.00025183,2]
[395130530,1764461451300,-400.64570606,0.00025185,2]
[395130531,1764461451308,-400.64570606,0.00025189,2]
[395130532,1764461451317,-400.64570606,0.00025193,2]
[395130533,1764461451326,-400.64570606,0.00025197,2]
[395130534,1764461451334,-400.64570606,0.00025201,2]
[395130535,1764461451477,-400.64570606,0.00025205,2]
[395130536,1764461451487,-400.64570606,0.00025209,2]
[395130537,1764461451497,-400.64570606,0.00025213,2]
[395130538,1764461451506,-400.64570606,0.00025217,2]
[395130539,1764461451515,-400.64570606,0.00025222,2]
[395130540,1764461451525,-400.64570606,0.00025226,2]
[395130541,1764461451534,-400.64570606,0.0002523,2]
[395130542,1764461451543,-400.64570606,0.00025234,2]
[395130543,1764461451552,-400.64570606,0.00025238,2]
[395130544,1764461451561,-400.64570606,0.00025242,2]
[395130545,1764461451570,-400.64570606,0.00025246,2]
[395130546,1764461451579,-400.64570606,0.0002525,2]
[395130547,1764461451587,-5000.0,0.00025346,2]
[395130548,1764461451596,-5000.0,0.00025346,2]
[395130549,1764461451605,-174.93132879,0.00025609,2]
[395130550,1764461451615,-277.35679052,0.00025729,2]
[395130551,1764461451624,-322.6107,0.00025729,2]
[395130552,1764461451633,-599.60298507,0.0002573,2]
[395130553,1764461451643,-1000.0,0.00025731,2]
[395130554,1764461451652,-300.0,0.00026027,7]
[395130555,1764461451661,-500.0,0.00026036,120]
[395130556,1764461451671,-610.0,0.00026169,2]
[395130557,1764461451680,-1321.0,0.00026169,2]
[395130558,1764461451689,-3441.0,0.00026169,2]
[395130559,1764461451698,-640.0,0.00026169,2]
[395130560,1764461451707,-1258.0,0.00026169,2]
[395130561,1764461451717,-1193.0,0.00026169,2]
[395130562,1764461451727,-909.0,0.00026169,2]
[395130563,1764461451736,-252.0,0.00026169,2]
[395130564,1764461451745,-2718.0,0.00026169,2]
[395130565,1764461451754,-6505.0,0.00026169,2]
[395130566,1764461451763,-1603.0,0.00026184,2]
[395130567,1764461451772,-1000.0,0.00026279,2]
[395130568,1764461451781,-156.61,0.00026554,30]
[395130569,1764461451790,-150.0,0.000266,14]
[395130570,1764461451799,-1600.0,0.00026631,120]
[395130571,1764461451808,-543.87,0.00026676,2]
[395130572,1764461451817,-182.96,0.00026718,2]
[395130573,1764461451826,-1000.0,0.00026827,2]
[395130574,1764461451835,-927.0,0.00027,2]
[395130575,1764461451845,-287.61899177,0.00027098,2]
[395130576,1764461451854,-300.0,0.00027098,2]
[395130577,1764461451863,-150.0,0.00027369,2]
[395130578,1764461451872,-1000.0,0.00027375,2]
[395130579,1764461451882,-500.0,0.00027397,8]
[395130580,1764461451892,-300.0,0.00027397,2]
[395130581,1764461451900,-300.0,0.00027397,7]
[395130582,1764461451910,-280.76,0.000274,120]
[395130583,1764461451919,-710.04,0.000274,2]
[395130584,1764461451928,-710.04,0.000274,2]
[395130585,1764461451937,-710.04,0.000274,2]
[395130586,1764461451947,-259.79978802,0.00027475,2]
[395130587,1764461451956,-2825.0,0.00027573,2]
[395130588,1764461451966,-8303.12,0.00027671,2]
[395130589,1764461451975,-1355.56,0.000277,2]
[395130590,1764461451985,-500.0,0.00027925,120]
[395130591,1764461451995,-1000.0,0.00028,2]
[395130592,1764461452004,-1000.0,0.000281,2]
[395130593,1764461452013,-606.94,0.000282,7]
[395130594,1764461452023,-298.26089446,0.00028467,2]
[395130595,1764461452040,-578.20924308,0.00028469,2]
[395130596,1764461452050,-400.0,0.0002887,2]
[395130597,1764461452067,-474.84133514,0.000289,2]
[395130598,1764461452076,-940.31947038,0.000289,2]
[395130599,1764461452085,-1322.3360951,0.000289,2]
[395130600,1764461452094,-440.3845114,0.000289,2]
[395130601,1764461452104,-183.59915168,0.000289,2]
[395130602,1764461452113,-463.0,0.00029,2]
[395130603,1764461452122,-610.0,0.00029169,2]
[395130604,1764461452131,-1321.0,0.00029169,2]
[395130605,1764461452140,-3441.0,0.00029169,2]
[395130606,1764461452149,-640.0,0.00029169,2]
[395130607,1764461452158,-1258.0,0.00029169,2]
[395130608,1764461452167,-1193.0,0.00029169,2]
[395130609,1764461452176,-909.0,0.00029169,2]
[395130610,1764461452185,-252.0,0.00029169,2]
[395130611,1764461452194,-2718.0,0.00029169,2]
[395130612,1764461452206,-6505.0,0.00029169,2]
[395130613,1764461452214,-1603.0,0.00029184,2]
[395130614,1764461452224,-1410.0,0.000293,2]
[395130615,1764461452233,-174.93132879,0.00029431,2]
[395130616,1764461452242,-309.29654756,0.00029836,2]
[395130617,1764461452251,-500.0,0.00029899,5]
[395130618,1764461452260,-500.0,0.00029899,5]
[395130619,1764461452269,-500.0,0.00029899,5]
[395130620,1764461452278,-500.0,0.00029899,5]
[395130621,1764461452287,-465.0,0.0003,2]
[395130622,1764461452296,-328.45352469,0.00030062,2]
[395130623,1764461452304,-666.0,0.00030088,10]
[395130624,1764461452314,-151.0,0.00030089,7]
[395130625,1764461452323,-151.0,0.00030089,7]
[395130626,1764461452333,-1249.0,0.00030089,7]
[395130627,1764461452342,-1249.0,0.00030089,7]
[395130628,1764461452351,-1249.0,0.00030089,7]
[395130629,1764461452360,-1249.0,0.00030089,7]
[395130630,1764461452368,-1249.0,0.00030089,7]
[395130631,1764461452378,-1249.0,0.00030089,7]
[395130632,1764461452387,-153.0,0.00030089,7]
[395130633,1764461452396,-153.0,0.00030089,7]
[395130634,1764461452405,-153.0,0.00030089,7]
[395130635,1764461452414,-153.0,0.00030089,7]
[395130636,1764461452423,-153.0,0.00030089,7]
[395130637,1764461452433,-153.0,0.00030089,7]
[395130638,1764461452442,-461.80110398,0.00030089,7]
[395130639,1764461452451,-250.0,0.00030137,8]
[395130640,1764461452461,-500.0,0.00030748,120]
[395130641,1764461452470,-427.45964135,0.00031,7]
[395130642,1764461452479,-320.74051982,0.00031205,2]
[395130643,1764461452488,-180.21,0.00031507,120]
[395130644,1764461452497,-1355.56,0.00032,2]
[395130645,1764461452506,-610.0,0.00032169,2]
[395130646,1764461452515,-1321.0,0.00032169,2]
[395130647,1764461452524,-3435.0,0.00032169,2]
[395130648,1764461452534,-640.0,0.00032169,2]
[395130649,1764461452543,-1258.0,0.00032169,2]
[395130650,1764461452552,-1193.0,0.00032169,2]
[395130651,1764461452561,-909.0,0.00032169,2]
[395130652,1764461452571,-252.0,0.00032169,2]
[395130653,1764461452580,-2715.0,0.00032169,2]
[395130654,1764461452591,-3239.785,0.00032169,2]
[395130655,1764461452600,-1600.0,0.00032184,2]
[395130656,1764461452609,-332.60791905,0.00032574,2]
[395130657,1764461452619,-592.57,0.00032876,120]
[395130658,1764461452627,-250.0,0.00032877,8]
[395130659,1764461452637,-215.44339282,0.00032877,5]
[395130660,1764461452646,-940.31947038,0.000329,2]
[395130661,1764461452656,-543.87,0.00033165,2]
[395130662,1764461452670,-174.93132879,0.00033254,2]
[395130663,1764461452682,-500.0,0.00033572,120]
[395130664,1764461452691,-592.57,0.00033698,120]
[395130665,1764461452701,-606.94,0.000337,14]
[395130666,1764461452710,-156.61,0.0003393,30]
[395130667,1764461452719,-344.91441206,0.00033943,2]
[395130668,1764461452728,-3359.009,0.00034514,39]
[395130669,1764461452738,-184.39,0.00034514,39]
[395130670,1764461452747,-592.57,0.0003452,120]
[395130671,1764461452756,-152.0,0.00034722,3]
[395130672,1764461452766,-400.0,0.0003477,2]
[395130673,1764461452775,-300.0,0.0003477,2]
[395130674,1764461452784,-203.0,0.0003488,30]
[395130675,1764461452794,-2000.0,0.00035099,120]
[395130676,1764461452803,-1355.56,0.000351,2]
[395130677,1764461452813,-1255.0,0.00035169,2]
[395130678,1764461452822,-1193.0,0.00035169,2]
[395130679,1764461452831,-909.0,0.00035169,2]
[395130680,1764461452841,-252.0,0.00035169,2]
[395130681,1764461452850,-357.6762453,0.00035312,2]
[395130682,1764461452859,-592.57,0.00035342,120]
[395130683,1764461452869,-250.0,0.00035616,8]
[395130684,1764461452878,-1374.0,0.000358,7]
[395130685,1764461452887,-152.0,0.00035977,4]
[395130686,1764461452896,-592.57,0.00036164,120]
[395130687,1764461452905,-500.0,0.00036395,120]
[395130688,1764461452914,-370.91026638,0.00036681,2]
[395130689,1764461452923,-180.21,0.00036758,120]
[395130690,1764461452933,-151.0,0.0003688,5]
[395130691,1764461452941,-203.0,0.0003689,30]
[395130692,1764461452950,-940.31947038,0.000369,2]
[395130693,1764461452959,-592.57,0.00036986,120]
[395130694,1764461452969,-187.92992603,0.00036999,30]
[395130695,1764461452978,-30208.15525563,0.00037,7]
[395130696,1764461452987,-427.45964135,0.00037,120]
[395130697,1764461452997,-174.93132879,0.00037077,2]
[395130698,1764461453006,-152.0,0.00037232,5]
[395130699,1764461453016,-2000.0,0.00037491,120]
[395130700,1764461453025,-592.57,0.00037808,120]
[395130701,1764461453034,-301.12915753,0.00037894,30]
[395130702,1764461453044,-300.0,0.00037894,30]
[395130703,1764461453054,-300.0,0.00037894,30]
[395130704,1764461453063,-365.3682991,0.00037894,30]
[395130705,1764461453072,-316.42049081,0.00037894,30]
[395130706,1764461453082,-300.87443563,0.00037894,30]
[395130707,1764461453092,-338.12226142,0.00037894,30]
[395130708,1764461453101,-301.12915753,0.00037894,30]
[395130709,1764461453111,-300.0,0.00037894,30]
[395130710,1764461453120,-300.0,0.00037894,30]
[395130711,1764461453129,-365.3682991,0.00037894,30]
[395130712,1764461453138,-300.87443563,0.00037894,30]
[395130713,1764461453147,-301.12915753,0.00037894,30]
[395130714,1764461453157,-557.49464768,0.00037894,30]
[395130715,1764461453167,-300.0,0.00037894,30]
[395130716,1764461453176,-365.3682991,0.00037894,30]
[395130717,1764461453185,-300.87443563,0.00037894,30]
[395130718,1764461453195,-301.12915753,0.00037894,30]
[395130719,1764461453206,-370.50358013,0.00037894,30]
[395130720,1764461453216,-365.3682991,0.00037894,30]
[395130721,1764461453229,-300.87443563,0.00037894,30]
[395130722,1764461453238,-301.12915753,0.00037894,30]
[395130723,1764461453248,-417.83589107,0.00037894,30]
[395130724,1764461453258,-300.87443563,0.00037894,30]
[395130725,1764461453267,-301.12915753,0.00037894,30]
[395130726,1764461453276,-302.17636605,0.00037894,30]
[395130727,1764461453286,-300.87443563,0.00037894,30]
[395130728,1764461453296,-1355.56,0.00038,2]
[395130729,1764461453308,-291.15248422,0.00038041,5]
[395130730,1764461453318,-384.63394623,0.0003805,2]
[395130731,1764461453327,-1193.0,0.00038169,2]
[395130732,1764461453336,-909.0,0.00038169,2]
[395130733,1764461453345,-336.86103574,0.00038356,2]
[395130734,1764461453355,-150.0,0.00038356,5]
[395130735,1764461453364,-300.0,0.00038356,15]
[395130736,1764461453374,-152.0,0.00038487,6]
[395130737,1764461453383,-157.10710291,0.0003861,30]
[395130738,1764461453393,-592.57,0.0003863,120]
[395130739,1764461453403,-500.0,0.000387,120]
[395130740,1764461453412,-500.0,0.000387,120]
[395130741,1764461453422,-500.0,0.000387,120]
[395130742,1764461453431,-500.0,0.000387,120]
[395130743,1764461453441,-500.0,0.000387,120]
[395130744,1764461453450,-500.0,0.000387,120]
[395130745,1764461453459,-150.0,0.00038767,60]
[395130746,1764461453469,-150.0,0.00038767,60]
[395130747,1764461453478,-803.0,0.00038767,60]
[395130748,1764461453487,-150.0,0.00038767,60]
[395130749,1764461453496,-500.0,0.00038767,60]
[395130750,1764461453505,-500.0,0.00038767,60]
[395130751,1764461453515,-500.0,0.00038767,2]
[395130752,1764461453524,-154.0,0.00038767,60]
[395130753,1764461453533,-157.99052045,0.00038767,60]
[395130754,1764461453543,-150.0,0.00038767,60]
[395130755,1764461453554,-500.0,0.00038767,60]
[395130756,1764461453563,-150.0,0.00038767,60]
[395130757,1764461453573,-150.0,0.00038767,2]
[395130758,1764461453583,-500.0,0.00038767,60]
[395130759,1764461453593,-250.0,0.00038767,60]
[395130760,1764461453602,-500.0,0.00038767,60]
[395130761,1764461453611,-500.0,0.00038767,60]
[395130762,1764461453621,-150.0,0.00038767,60]
[395130763,1764461453631,-150.0,0.00038767,60]
[395130764,1764461453640,-500.0,0.00038767,60]
[395130765,1764461453651,-150.0,0.00038767,60]
[395130766,1764461453660,-150.0,0.00038767,60]
[395130767,1764461453670,-150.0,0.00038767,60]
[395130768,1764461453679,-150.0,0.00038767,60]
[395130769,1764461453689,-282.0,0.00038812,7]
[395130770,1764461453699,-1217.3971,0.00038888,30]
[395130771,1764461453708,-155.26,0.000389,2]
[395130772,1764461453718,-150.0,0.00038904,60]
[395130773,1764461453727,-803.0,0.00038904,60]
[395130774,1764461453736,-150.0,0.00038904,60]
[395130775,1764461453746,-500.0,0.00038904,60]
[395130776,1764461453756,-500.0,0.00038904,60]
[395130777,1764461453765,-500.0,0.00038904,2]
[395130778,1764461453775,-150.0,0.00038904,60]
[395130779,1764461453785,-500.0,0.00038904,60]
[395130780,1764461453795,-156.94438455,0.00038904,60]
[395130781,1764461453804,-518.09228248,0.00038904,60]
[395130782,1764461453814,-500.0,0.00038904,60]
[395130783,1764461453823,-500.0,0.00038904,60]
[395130784,1764461453833,-208.7124507,0.00038904,60]
[395130785,1764461453843,-150.0,0.00038904,60]
[395130786,1764461453853,-600.0,0.00038904,60]
[395130787,1764461453863,-150.0,0.00038904,60]
[395130788,1764461453873,-150.0,0.00038904,60]
[395130789,1764461453883,-150.0,0.00038904,60]
[395130790,1764461453892,-150.0,0.00038904,60]
[395130791,1764461453902,-8303.12,0.00038904,2]
[395130792,1764461453911,-203.0,0.0003891,30]
[395130793,1764461453920,-958.52,0.00038934,2]
[395130794,1764461453934,-959.16,0.00038934,2]
[395130795,1764461453944,-479.66,0.00038934,2]
[395130796,1764461453955,-479.66,0.00038934,2]
[395130797,1764461453965,-479.66,0.00038934,2]
[395130798,1764461453975,-479.66,0.00038934,2]
[395130799,1764461453984,-151.0,0.0003894,6]
[395130800,1764461453993,-427.45964135,0.00039,30]
[395130801,1764461454003,-150.0,0.00039041,60]
[395130802,1764461454012,-803.0,0.00039041,60]
[395130803,1764461454022,-150.0,0.00039041,60]
[395130804,1764461454031,-500.0,0.00039041,60]
[395130805,1764461454041,-500.0,0.00039041,60]
[395130806,1764461454051,-500.0,0.00039041,2]
[395130807,1764461454060,-150.0,0.00039041,60]
[395130808,1764461454069,-500.0,0.00039041,60]
[395130809,1764461454079,-500.0,0.00039041,60]
[395130810,1764461454088,-500.0,0.00039041,60]
[395130811,1764461454097,-207.71038414,0.00039041,60]
[395130812,1764461454106,-150.0,0.00039041,60]
[395130813,1764461454116,-150.0,0.00039041,60]
[395130814,1764461454126,-178.73243855,0.00039041,60]
[395130815,1764461454135,-203.23346496,0.00039041,60]
[395130816,1764461454146,-282.0,0.00039059,2]
[395130817,1764461454156,-803.0,0.00039178,60]
[395130818,1764461454166,-200.0,0.00039178,60]
[395130819,1764461454175,-500.0,0.00039178,60]
[395130820,1764461454184,-500.0,0.00039178,60]
[395130821,1764461454193,-150.0,0.00039178,2]
[395130822,1764461454204,-150.0,0.00039178,60]
[395130823,1764461454215,-500.0,0.00039178,60]
[395130824,1764461454224,-500.0,0.00039178,60]
[395130825,1764461454233,-500.0,0.00039178,60]
[395130826,1764461454242,-200.0,0.00039178,60]
[395130827,1764461454252,-200.0,0.00039178,60]
[395130828,1764461454261,-282.0,0.00039228,2]
[395130829,1764461454271,-803.0,0.00039315,60]
[395130830,1764461454280,-500.0,0.00039315,60]
[395130831,1764461454290,-500.0,0.00039315,60]
[395130832,1764461454303,-200.0,0.00039315,60]
[395130833,1764461454312,-500.0,0.00039315,60]
[395130834,1764461454321,-500.0,0.00039315,60]
[395130835,1764461454330,-500.0,0.00039315,60]
[395130836,1764461454339,-282.0,0.00039341,2]
[395130837,1764461454349,-468.28058421,0.00039356,14]
[395130838,1764461454358,-500.0,0.00039356,14]
[395130839,1764461454824,-500.0,0.00039356,14]
[395130840,1764461454866,-398.86540225,0.00039419,2]